[Event "EWCCC Online Preliminary-D 2020"]
[Site "Online"]
[Date "2020.12.19"]
[Round "4.1"]
[White "Dubovyk, Anastasiia"]
[Black "Narva, Mai"]
[Result "1/2-1/2"]
[ECO "B31"]
[WhiteElo "1971"]
[BlackElo "2276"]
[Annotator "RC"]
[PlyCount "150"]
[EventDate "2020.12.19"]
[EventType "team-tourn"]
[EventCountry "NET"]
[SourceTitle "playchess.com"]
[Source "ChessBase"]
[SourceQuality "1"]
[TimeControl "900+5"]

1. e4 {[%emt 0:00:03]} c5 {[%emt 0:00:03]} 2. Nf3 {[%emt 0:00:03]} Nc6 {[%emt 0:00:05]} 3. Bb5 {[%emt 0:00:03]} g6 {[%emt 0:00:02]} 4. Bxc6 {[%emt 0:00:02]} bxc6 {[%emt 0:00:01]} 5. O-O {[%emt 0:00:03]} Bg7 {[%emt 0:00:01]} 6. Re1 {[%emt 0:00:02]} Nh6 {[%emt 0:00:20]} 7. c3 {[%emt 0:00:04]} O-O {[%emt 0:00:12]} 8. d4 {[%emt 0:00:02]} cxd4 {[%emt 0:00:03]} 9. Nxd4 {[%emt 0:00:01]} c5 {[%emt 0:00:15]} 10. Nb3 {[%emt 0:00:09]} d6 {[%emt 0:00:02]} 11. h3 {[%emt 0:00:03]} Bb7 {[%emt 0:00:21]} 12. N1d2 {[%emt 0:00:08]} Kh8 {[%emt 0:00:09]} 13. Nc4 {[%emt 0:00:09]} Qc8 {[%emt 0:01:03]} 14. Nba5 {[%emt 0:00:19]} Ng8 {[%emt 0:00:40]} 15. Nxb7 {[%emt 0:00:06]} Qxb7 {[%emt 0:00:01]} 16. Qd5 {[%emt 0:00:06]} Qc7 {[%emt 0:00:41]} 17. e5 {[%emt 0:00:11]} dxe5 {[%emt 0:00:02]} 18. Nxe5 {[%emt 0:00:02]} e6 {[%emt 0:00:01]} 19. Qe4 {[%emt 0:00:11]} Nf6 {[%emt 0:00:05]} 20. Qf3 {[%emt 0:00:02]} Nd5 {[%emt 0:00:05]} 21. c4 {[%emt 0:00:29]} Bxe5 {[%emt 0:01:56]} 22. cxd5 {[%emt 0:00:02]} exd5 {[%emt 0:00:44]} 23. Qxd5 {[%emt 0:00:03]} Bg7 {[%emt 0:00:06]} 24. Rb1 {[%emt 0:00:30]} Rad8 {[%emt 0:00:11]} 25. Qc4 {[%emt 0:00:07]} Rd4 {[%emt 0:00:11]} 26. Qc2 {[%emt 0:00:03]} c4 {[%emt 0:00:16]} 27. Be3 {[%emt 0:00:11]} Rd5 {[%emt 0:00:13]} 28. Rbc1 {[%emt 0:00:18]} Rc8 {[%emt 0:00:59]} 29. Red1 {[%emt 0:00:26]} Rxd1+ {[%emt 0:00:24]} 30. Rxd1 {[%emt 0:00:02]} Qb7 {[%emt 0:00:28]} 31. Bd4 {[%emt 0:00:09]} Qa6 {[%emt 0:00:36]} 32. Qc3 {[%emt 0:00:17]} Bxd4 {[%emt 0:00:05]} 33. Rxd4 {[%emt 0:00:02]} Kg8 {[%emt 0:00:02]} 34. a3 {[%emt 0:00:03]} Qb5 {[%emt 0:00:10]} 35. b4 {[%emt 0:00:15]} h5 {[%emt 0:00:14]} 36. a4 {[%emt 0:00:10]} Qxa4 {[%emt 0:00:31]} 37. Rxc4 {[%emt 0:00:03]} Qd1+ {[%emt 0:00:11]} 38. Kh2 {[%emt 0:00:03]} Qd6+ {[%emt 0:00:11]} 39. g3 {[%emt 0:00:07]} Rxc4 {[%emt 0:00:12]} 40. Qxc4 {[%emt 0:00:02]} Qb6 {[%emt 0:00:02]} 41. Kg2 {[%emt 0:00:22]} Qb7+ {[%emt 0:00:05]} 42. f3 {[%emt 0:00:01]} Qd7 {[%emt 0:00:07]} 43. Qc3 {[%emt 0:00:03]} Qb5 {[%emt 0:00:07]} 44. Qd2 {[%emt 0:00:09]} a6 {[%emt 0:00:05]} 45. h4 {[%emt 0:00:02]} Kg7 {[%emt 0:00:03]} 46. Qd4+ {[%emt 0:00:03]} Kg8 {[%emt 0:00:02]} 47. Kf2 {[%emt 0:00:01]} Qa4 {[%emt 0:00:17]} 48. Ke3 {[%emt 0:01:08]} Qe8+ {[%emt 0:00:37]} 49. Kf4 {[%emt 0:00:03]} Qb8+ {[%emt 0:00:05]} 50. Kg5 {[%emt 0:00:04]} Qxg3+ {[%emt 0:00:05]} 51. Kh6 {[%emt 0:00:03]} f6 {[%emt 0:00:27]} 52. Qxf6 {[%emt 0:00:14]} Qc7 {[%emt 0:00:06]} 53. Qxg6+ {[%emt 0:00:20]} Kf8 {[%emt 0:00:02]} 54. Qf5+ {[%emt 0:00:03]} Kg8 {[%emt 0:00:16]} 55. Kxh5 {[%emt 0:00:11]} Qc3 {[%emt 0:00:08]} 56. Kg5 {[%emt 0:00:28]} Qxb4 {[%emt 0:00:14]} 57. Qc8+ {[%emt 0:00:08]} Kg7 {[%emt 0:00:09]} 58. Qxa6 {[%emt 0:00:02]} Qd2+ {[%emt 0:00:13]} 59. Kg4 {[%emt 0:00:07]} Qg2+ {[%emt 0:00:05]} 60. Kf4 {[%emt 0:00:02]} Qh2+ {[%emt 0:00:06]} 61. Ke3 {[%emt 0:00:22]} Qxh4 {[%emt 0:00:08]} 62. Qa7+ {[%emt 0:00:06]} Kg8 {[%emt 0:00:12]} 63. Qb8+ {[%emt 0:00:03]} Kg7 {[%emt 0:00:04]} 64. Qc7+ {[%emt 0:00:02]} Kg8 {[%emt 0:00:06]} 65. Qc8+ {[%emt 0:00:03]} Kg7 {[%emt 0:00:23]} 66. Qd7+ {[%emt 0:00:10]} Kg8 {[%emt 0:00:36]} 67. Qd5+ {[%emt 0:00:07]} Kg7 {[%emt 0:00:14]} 68. Qd7+ {[%emt 0:00:13]} Kg8 {[%emt 0:00:03]} 69. Qe6+ {[%emt 0:00:03]} Kg7 {[%emt 0:00:04]} 70. Qe5+ {[%emt 0:00:10]} Kg8 {[%emt 0:00:05]} 71. f4 {[%emt 0:00:03]} Qg3+ {[%emt 0:00:21]} 72. Ke4 {[%emt 0:00:04]} Kf7 {[%emt 0:00:14]} 73. Qf5+ {[%emt 0:00:19]} Ke7 {[%emt 0:00:27]} 74. Qh7+ {[%emt 0:00:04]} Kf6 {[%emt 0:00:08]} 75. Qh6+ {[%emt 0:00:15]} Kf7 {[%emt 0:00:03]} 1/2-1/2

[Event "EWCCC Online Preliminary-D 2020"]
[Site "Online"]
[Date "2020.12.19"]
[Round "4.1"]
[White "Olde, Grete"]
[Black "Prasol, Aliesia"]
[Result "1-0"]
[ECO "B12"]
[WhiteElo "1915"]
[BlackElo "1702"]
[Annotator "NA"]
[PlyCount "75"]
[EventDate "2020.12.19"]
[EventType "team-tourn"]
[EventCountry "NET"]
[SourceTitle "playchess.com"]
[Source "ChessBase"]
[SourceQuality "1"]
[TimeControl "900+5"]

1. e4 {[%emt 0:00:00]} c6 {[%emt 0:00:03]} 2. d4 {[%emt 0:00:04]} d5 {[%emt 0:00:02]} 3. e5 {[%emt 0:00:02]} Bf5 {[%emt 0:00:02]} 4. Nf3 {[%emt 0:00:02]} e6 {[%emt 0:00:03]} 5. Be2 {[%emt 0:00:02]} Nd7 {[%emt 0:00:11]} 6. O-O {[%emt 0:00:07]} c5 {[%emt 0:00:02]} 7. c3 {[%emt 0:00:09]} Qb6 {[%emt 0:00:22]} 8. b3 {[%emt 0:00:26]} h6 {[%emt 0:00:43]} 9. Be3 {[%emt 0:00:17]} cxd4 {[%emt 0:00:05]} 10. Bxd4 {[%emt 0:00:55]} Bc5 {[%emt 0:00:05]} 11. Re1 {[%emt 0:00:35]} Ne7 {[%emt 0:00:09]} 12. Nbd2 {[%emt 0:00:59]} Bxd4 {[%emt 0:00:15]} 13. cxd4 {[%emt 0:00:05]} O-O {[%emt 0:00:04]} 14. Nf1 {[%emt 0:00:08]} Rac8 {[%emt 0:00:07]} 15. Ne3 {[%emt 0:00:39]} Be4 {[%emt 0:00:08]} 16. Qd2 {[%emt 0:00:48]} Rc6 {[%emt 0:00:29]} 17. Rac1 {[%emt 0:00:30]} Rfc8 {[%emt 0:00:04]} 18. Rxc6 {[%emt 0:00:34]} Qxc6 {[%emt 0:00:17]} 19. Qb4 {[%emt 0:00:43]} Nf5 {[%emt 0:00:23]} 20. Nxf5 {[%emt 0:00:11]} Bxf5 {[%emt 0:00:03]} 21. Bb5 {[%emt 0:00:34]} Qc7 {[%emt 0:00:08]} 22. h3 {[%emt 0:00:41]} a6 {[%emt 0:00:05]} 23. Bf1 {[%emt 0:00:09]} b5 {[%emt 0:01:15]} 24. a4 {[%emt 0:00:53]} Qb6 {[%emt 0:01:02]} 25. axb5 {[%emt 0:00:37]} axb5 {[%emt 0:00:03]} 26. Qxb5 {[%emt 0:00:08]} Qxb5 {[%emt 0:00:27]} 27. Bxb5 {[%emt 0:00:05]} Nb6 {[%emt 0:00:03]} 28. g4 {[%emt 0:00:40]} Bg6 {[%emt 0:00:17]} 29. Nh4 {[%emt 0:00:26]} Bh7 {[%emt 0:00:37]} 30. Re3 {[%emt 0:00:19]} Rc1+ {[%emt 0:01:02]} 31. Kg2 {[%emt 0:00:05]} Be4+ {[%emt 0:00:17]} 32. f3 {[%emt 0:00:09]} Bb1 {[%emt 0:00:47]} 33. f4 {[%emt 0:00:29]} Be4+ {[%emt 0:00:15]} 34. Kg3 {[%emt 0:00:16]} Rd1 {[%emt 0:02:01]} 35. Rc3 {[%emt 0:00:51]} Rxd4 {[%emt 0:02:15]} 36. Rc6 {[%emt 0:00:08]} Rb4 {[%emt 0:00:07]} 37. Rxb6 {[%emt 0:00:14]} Bd3 {[%emt 0:00:02]} 38. Rb8+ {[%emt 0:00:02]} 1-0

[Event "EWCCC Online Preliminary-D 2020"]
[Site "Online"]
[Date "2020.12.19"]
[Round "4.1"]
[White "Mashchenko, Tamila"]
[Black "Narva, Triin"]
[Result "0-1"]
[ECO "A36"]
[WhiteElo "1768"]
[BlackElo "2100"]
[Annotator "ChessBase"]
[PlyCount "76"]
[EventDate "2020.12.19"]
[EventType "team-tourn"]
[EventCountry "NET"]
[SourceTitle "playchess.com"]
[Source "ChessBase"]
[SourceQuality "1"]
[TimeControl "900+5"]

1. c4 {[%emt 0:00:00]} g6 {[%emt 0:00:03]} 2. Nc3 {[%emt 0:00:04]} Bg7 {[%emt 0:00:04]} 3. g3 {[%emt 0:00:03]} Nf6 {[%emt 0:00:04]} 4. Bg2 {[%emt 0:00:02]} c5 {[%emt 0:00:06]} 5. e4 {[%emt 0:00:03]} Nc6 {[%emt 0:00:04]} 6. Nge2 {[%emt 0:00:04]} O-O {[%emt 0:00:02]} 7. O-O {[%emt 0:00:05]} d6 {[%emt 0:00:19]} 8. Rb1 {[%emt 0:00:36]} Be6 {[%emt 0:00:30]} 9. d3 {[%emt 0:00:03]} Qd7 {[%emt 0:00:03]} 10. a3 {[%emt 0:00:03]} Bh3 {[%emt 0:00:13]} 11. b4 {[%emt 0:00:07]} Nd4 {[%emt 0:01:15]} 12. f4 {[%emt 0:00:57]} Bxg2 {[%emt 0:01:24]} 13. Kxg2 {[%emt 0:00:31]} b6 {[%emt 0:00:14]} 14. Nxd4 {[%emt 0:00:15]} cxd4 {[%emt 0:00:03]} 15. Ne2 {[%emt 0:00:10]} e5 {[%emt 0:00:06]} 16. f5 {[%emt 0:00:05]} b5 {[%emt 0:00:36]} 17. cxb5 {[%emt 0:00:13]} d5 {[%emt 0:00:18]} 18. fxg6 {[%emt 0:00:16]} hxg6 {[%emt 0:00:38]} 19. Bg5 {[%emt 0:00:13]} Nh7 {[%emt 0:00:16]} 20. Bd2 {[%emt 0:00:20]} dxe4 {[%emt 0:00:05]} 21. dxe4 {[%emt 0:00:03]} Qxb5 {[%emt 0:00:32]} 22. g4 {[%emt 0:01:18]} Nf6 {[%emt 0:00:19]} 23. Ng3 {[%emt 0:00:05]} Qb7 {[%emt 0:00:40]} 24. Qe2 {[%emt 0:00:15]} Rac8 {[%emt 0:00:14]} 25. h3 {[%emt 0:00:34]} Rc2 {[%emt 0:00:16]} 26. Qd3 {[%emt 0:00:30]} Rfc8 {[%emt 0:02:47]} 27. Kg1 {[%emt 0:02:04]} R8c4 {[%emt 0:00:46]} 28. a4 {[%emt 0:01:03]} R4c3 {[%emt 0:00:54]} 29. Bxc3 {[%emt 0:00:35]} Rxc3 {[%emt 0:00:03]} 30. Qb5 {[%emt 0:00:34]} Rxg3+ {[%emt 0:01:29]} 31. Kh2 {[%emt 0:00:26]} Qxb5 {[%emt 0:00:03]} 32. axb5 {[%emt 0:00:03]} Nxe4 {[%emt 0:00:04]} 33. Ra1 {[%emt 0:00:12]} Bh6 {[%emt 0:00:36]} 34. Rxa7 {[%emt 0:00:12]} Bf4 {[%emt 0:00:02]} 35. Rxf4 {[%emt 0:00:33]} exf4 {[%emt 0:00:06]} 36. b6 {[%emt 0:00:02]} Nd2 {[%emt 0:00:26]} 37. b7 {[%emt 0:00:39]} Nf3+ {[%emt 0:00:03]} 38. Kh1 {[%emt 0:00:08]} Rg1# {[%emt 0:00:04]} 0-1

[Event "EWCCC Online Preliminary-D 2020"]
[Site "Online"]
[Date "2020.12.19"]
[Round "4.2"]
[White "Fink-Nunn, Petra"]
[Black "Berezovsky, Fiorina"]
[Result "0-1"]
[ECO "B42"]
[WhiteElo "1966"]
[BlackElo "1665"]
[Annotator "ChessBase"]
[PlyCount "164"]
[EventDate "2020.12.19"]
[EventType "team-tourn"]
[EventCountry "NET"]
[SourceTitle "playchess.com"]
[Source "ChessBase"]
[SourceQuality "1"]
[TimeControl "900+5"]

1. e4 {[%emt 0:00:00]} c5 {[%emt 0:00:05]} 2. Nf3 {[%emt 0:00:03]} e6 {[%emt 0:00:15]} 3. d4 {[%emt 0:00:04]} cxd4 {[%emt 0:00:09]} 4. Nxd4 {[%emt 0:00:02]} a6 {[%emt 0:00:06]} 5. Bd3 {[%emt 0:00:30]} Qc7 {[%emt 0:00:06]} 6. O-O {[%emt 0:00:31]} Bc5 {[%emt 0:00:09]} 7. Nb3 {[%emt 0:00:22]} Be7 {[%emt 0:00:20]} 8. f4 {[%emt 0:01:10]} Nc6 {[%emt 0:00:16]} 9. Be3 {[%emt 0:01:01]} Nb4 {[%emt 0:00:17]} 10. Nc3 {[%emt 0:01:51]} Nxd3 {[%emt 0:00:15]} 11. Qxd3 {[%emt 0:00:03]} b5 {[%emt 0:00:14]} 12. Rad1 {[%emt 0:02:06]} Bb7 {[%emt 0:00:10]} 13. a3 {[%emt 0:00:38]} Nf6 {[%emt 0:00:26]} 14. h3 {[%emt 0:03:53]} O-O {[%emt 0:00:52]} 15. Nd2 {[%emt 0:00:29]} Qc6 {[%emt 0:00:11]} 16. Rfe1 {[%emt 0:01:07]} Rfd8 {[%emt 0:00:10]} 17. Qe2 {[%emt 0:00:27]} d5 {[%emt 0:00:16]} 18. exd5 {[%emt 0:00:18]} Nxd5 {[%emt 0:00:05]} 19. Nxd5 {[%emt 0:00:04]} Rxd5 {[%emt 0:00:07]} 20. Nf3 {[%emt 0:00:04]} Rad8 {[%emt 0:00:13]} 21. Ne5 {[%emt 0:00:14]} Qc7 {[%emt 0:00:18]} 22. Rxd5 {[%emt 0:00:14]} Bxd5 {[%emt 0:00:20]} 23. Qf2 {[%emt 0:00:13]} Rc8 {[%emt 0:00:22]} 24. c3 {[%emt 0:00:04]} f6 {[%emt 0:00:16]} 25. Nf3 {[%emt 0:00:16]} Qc4 {[%emt 0:00:17]} 26. Bc1 {[%emt 0:00:29]} Bd6 {[%emt 0:00:10]} 27. Nd4 {[%emt 0:00:14]} Bc5 {[%emt 0:00:23]} 28. Be3 {[%emt 0:00:31]} Bb7 {[%emt 0:00:22]} 29. Qe2 {[%emt 0:00:15]} Qxe2 {[%emt 0:00:08]} 30. Rxe2 {[%emt 0:00:01]} e5 {[%emt 0:00:05]} 31. fxe5 {[%emt 0:00:04]} fxe5 {[%emt 0:00:04]} 32. Nc2 {[%emt 0:00:09]} Bxe3+ {[%emt 0:00:20]} 33. Rxe3 {[%emt 0:00:03]} e4 {[%emt 0:00:04]} 34. Nd4 {[%emt 0:00:05]} Kf7 {[%emt 0:00:09]} 35. Kf2 {[%emt 0:00:06]} Kf6 {[%emt 0:00:07]} 36. g4 {[%emt 0:00:03]} g6 {[%emt 0:00:20]} 37. Ne2 {[%emt 0:00:11]} h5 {[%emt 0:00:14]} 38. gxh5 {[%emt 0:00:05]} gxh5 {[%emt 0:00:03]} 39. Ng3 {[%emt 0:00:02]} Ke5 {[%emt 0:00:32]} 40. Nxh5 {[%emt 0:00:02]} Rh8 {[%emt 0:00:03]} 41. Ng7 {[%emt 0:00:12]} Kf6 {[%emt 0:00:32]} 42. Rg3 {[%emt 0:00:05]} Ke5 {[%emt 0:00:39]} 43. Ke3 {[%emt 0:00:09]} Rd8 {[%emt 0:00:15]} 44. h4 {[%emt 0:00:04]} Rd3+ {[%emt 0:00:08]} 45. Kf2 {[%emt 0:00:01]} Rd2+ {[%emt 0:00:04]} 46. Ke3 {[%emt 0:00:02]} Rxb2 {[%emt 0:00:03]} 47. h5 {[%emt 0:00:04]} Rh2 {[%emt 0:00:08]} 48. Rg5+ {[%emt 0:00:06]} Kf6 {[%emt 0:00:19]} 49. Rg6+ {[%emt 0:00:01]} Kf7 {[%emt 0:00:09]} 50. Rg5 {[%emt 0:00:02]} Rh3+ {[%emt 0:00:25]} 51. Kd4 {[%emt 0:00:02]} e3 {[%emt 0:00:10]} 52. h6 {[%emt 0:00:18]} e2 {[%emt 0:00:24]} 53. Re5 {[%emt 0:00:04]} Rxh6 {[%emt 0:00:11]} 54. Nf5 {[%emt 0:00:02]} Rf6 {[%emt 0:00:31]} 55. Ng3 {[%emt 0:00:04]} Rf4+ {[%emt 0:00:43]} 56. Kd3 {[%emt 0:00:03]} Rf3+ {[%emt 0:00:06]} 57. Kxe2 {[%emt 0:00:08]} Rxg3 {[%emt 0:00:04]} 58. Kd2 {[%emt 0:00:03]} Kf6 {[%emt 0:00:07]} 59. Re8 {[%emt 0:00:07]} Kf5 {[%emt 0:00:22]} 60. Rb8 {[%emt 0:00:09]} Be4 {[%emt 0:00:20]} 61. Rb6 {[%emt 0:00:07]} Rd3+ {[%emt 0:00:06]} 62. Ke2 {[%emt 0:00:03]} Rxc3 {[%emt 0:00:26]} 63. Rxa6 {[%emt 0:00:02]} Kf4 {[%emt 0:00:16]} 64. Ra5 {[%emt 0:00:08]} Rc2+ {[%emt 0:00:05]} 65. Kd1 {[%emt 0:00:04]} Bd3 {[%emt 0:00:27]} 66. Ra8 {[%emt 0:00:08]} Ke3 {[%emt 0:00:15]} 67. Re8+ {[%emt 0:00:02]} Kd4 {[%emt 0:00:13]} 68. Rd8+ {[%emt 0:00:04]} Kc4 {[%emt 0:00:08]} 69. Rc8+ {[%emt 0:00:04]} Kb3 {[%emt 0:00:09]} 70. Rd8 {[%emt 0:00:02]} Be4 {[%emt 0:00:20]} 71. Re8 {[%emt 0:00:05]} Bf3+ {[%emt 0:00:08]} 72. Ke1 {[%emt 0:00:02]} Kxa3 {[%emt 0:00:07]} 73. Re3+ {[%emt 0:00:02]} Ka2 {[%emt 0:00:09]} 74. Rxf3 {[%emt 0:00:01]} b4 {[%emt 0:00:02]} 75. Kd1 {[%emt 0:00:10]} b3 {[%emt 0:00:15]} 76. Rf8 {[%emt 0:00:06]} Rh2 {[%emt 0:00:09]} 77. Ra8+ {[%emt 0:00:12]} Kb1 {[%emt 0:00:07]} 78. Rb8 {[%emt 0:00:04]} Rb2 {[%emt 0:00:24]} 79. Ra8 {[%emt 0:00:13]} Ra2 {[%emt 0:00:12]} 80. Rb8 {[%emt 0:00:03]} b2 {[%emt 0:00:05]} 81. Kd2 {[%emt 0:00:07]} Ka1 {[%emt 0:00:09]} 82. Kc2 {[%emt 0:00:06]} b1=Q+ {[%emt 0:00:10]} 0-1

[Event "EWCCC Online Preliminary-D 2020"]
[Site "Online"]
[Date "2020.12.19"]
[Round "4.2"]
[White "Jose Polanco, Kenia"]
[Black "Corke, Anya S"]
[Result "0-1"]
[ECO "E61"]
[WhiteElo "1828"]
[BlackElo "2255"]
[Annotator "ChessBase"]
[PlyCount "78"]
[EventDate "2020.12.19"]
[EventType "team-tourn"]
[EventCountry "NET"]
[SourceTitle "playchess.com"]
[Source "ChessBase"]
[SourceQuality "1"]
[TimeControl "900+5"]

1. d4 {[%emt 0:00:00]} Nf6 {[%emt 0:00:08]} 2. Bf4 {[%emt 0:00:10]} d6 {[%emt 0:00:05]} 3. e3 {[%emt 0:00:07]} g6 {[%emt 0:00:02]} 4. Nf3 {[%emt 0:00:07]} Bg7 {[%emt 0:00:02]} 5. c4 {[%emt 0:00:02]} O-O {[%emt 0:00:02]} 6. Nc3 {[%emt 0:00:02]} a6 {[%emt 0:00:07]} 7. Be2 {[%emt 0:00:08]} c5 {[%emt 0:00:07]} 8. O-O {[%emt 0:01:00]} Nbd7 {[%emt 0:00:14]} 9. Rc1 {[%emt 0:00:36]} b6 {[%emt 0:00:40]} 10. d5 {[%emt 0:00:30]} Bb7 {[%emt 0:00:20]} 11. e4 {[%emt 0:00:19]} Qc7 {[%emt 0:00:38]} 12. Qd2 {[%emt 0:00:31]} Rfe8 {[%emt 0:00:30]} 13. h4 {[%emt 0:00:21]} Ng4 {[%emt 0:00:52]} 14. Nh2 {[%emt 0:00:39]} Nxh2 {[%emt 0:00:20]} 15. Kxh2 {[%emt 0:00:13]} Nf6 {[%emt 0:00:09]} 16. h5 {[%emt 0:00:19]} Qd7 {[%emt 0:00:48]} 17. Rh1 {[%emt 0:00:27]} Ng4+ {[%emt 0:00:59]} 18. Kg1 {[%emt 0:00:22]} Bd4 {[%emt 0:00:11]} 19. Nd1 {[%emt 0:00:31]} e5 {[%emt 0:01:07]} 20. Bg3 {[%emt 0:01:39]} Bc8 {[%emt 0:01:32]} 21. hxg6 {[%emt 0:00:31]} fxg6 {[%emt 0:00:16]} 22. Qg5 {[%emt 0:02:41]} Qe7 {[%emt 0:00:29]} 23. Qd2 {[%emt 0:00:26]} Rf8 {[%emt 0:00:45]} 24. Bh4 {[%emt 0:00:38]} Qf7 {[%emt 0:00:31]} 25. Bxg4 {[%emt 0:00:24]} Bxg4 {[%emt 0:00:04]} 26. Ne3 {[%emt 0:00:35]} Qf4 {[%emt 0:00:57]} 27. Bg3 {[%emt 0:00:45]} Qxe4 {[%emt 0:00:15]} 28. Nc2 {[%emt 0:00:37]} Bc8 {[%emt 0:00:59]} 29. Qh6 {[%emt 0:00:39]} Ra7 {[%emt 0:00:04]} 30. Rh4 {[%emt 0:01:03]} Qf5 {[%emt 0:00:10]} 31. Nxd4 {[%emt 0:00:42]} cxd4 {[%emt 0:00:03]} 32. Rd1 {[%emt 0:00:12]} Raf7 {[%emt 0:00:07]} 33. Qd2 {[%emt 0:00:17]} a5 {[%emt 0:01:03]} 34. b4 {[%emt 0:00:05]} axb4 {[%emt 0:00:08]} 35. Qxb4 {[%emt 0:00:03]} Qc2 {[%emt 0:00:03]} 36. Rb1 {[%emt 0:00:06]} Rxf2 {[%emt 0:00:13]} 37. Rh2 {[%emt 0:00:11]} Qe2 {[%emt 0:00:17]} 38. Bxf2 {[%emt 0:00:04]} Qxf2+ {[%emt 0:00:02]} 39. Kh1 {[%emt 0:00:02]} Qf1+ {[%emt 0:00:01]} 0-1

[Event "EWCCC Online Preliminary-D 2020"]
[Site "Online"]
[Date "2020.12.19"]
[Round "4.2"]
[White "Rubsamen, Anais"]
[Black "Grigoryan, Meri"]
[Result "0-1"]
[ECO "D33"]
[WhiteElo "1692"]
[BlackElo "2044"]
[Annotator "NA"]
[PlyCount "58"]
[EventDate "2020.12.19"]
[EventType "team-tourn"]
[EventCountry "NET"]
[SourceTitle "playchess.com"]
[Source "ChessBase"]
[SourceQuality "1"]
[TimeControl "900+5"]

1. Nf3 {[%emt 0:00:01]} d5 {[%emt 0:00:04]} 2. g3 {[%emt 0:00:03]} Nf6 {[%emt 0:00:08]} 3. Bg2 {[%emt 0:00:02]} c5 {[%emt 0:00:20]} 4. c4 {[%emt 0:00:28]} e6 {[%emt 0:01:06]} 5. O-O {[%emt 0:00:34]} Nc6 {[%emt 0:00:07]} 6. cxd5 {[%emt 0:00:03]} exd5 {[%emt 0:00:33]} 7. d4 {[%emt 0:00:02]} Be6 {[%emt 0:02:52]} 8. Nc3 {[%emt 0:00:47]} h6 {[%emt 0:00:28]} 9. Re1 {[%emt 0:00:45]} Be7 {[%emt 0:00:25]} 10. b3 {[%emt 0:05:12]} O-O {[%emt 0:02:12]} 11. Bb2 {[%emt 0:00:14]} Rc8 {[%emt 0:00:29]} 12. Rc1 {[%emt 0:00:44]} cxd4 {[%emt 0:02:41]} 13. Nxd4 {[%emt 0:00:06]} Nxd4 {[%emt 0:00:06]} 14. Qxd4 {[%emt 0:00:03]} Bc5 {[%emt 0:00:04]} 15. Qd1 {[%emt 0:00:02]} Qa5 {[%emt 0:01:58]} 16. Na4 {[%emt 0:02:28]} Bb4 {[%emt 0:00:18]} 17. Rf1 {[%emt 0:00:18]} Rxc1 {[%emt 0:01:24]} 18. Qxc1 {[%emt 0:00:02]} Rc8 {[%emt 0:00:02]} 19. Qe3 {[%emt 0:00:03]} Bd2 {[%emt 0:00:29]} 20. Qe5 {[%emt 0:00:29]} b5 {[%emt 0:00:12]} 21. e4 {[%emt 0:01:34]} bxa4 {[%emt 0:00:22]} 22. exd5 {[%emt 0:00:16]} Bxd5 {[%emt 0:00:11]} 23. Bxd5 {[%emt 0:00:18]} Qxd5 {[%emt 0:00:03]} 24. Qe7 {[%emt 0:01:25]} Ng4 {[%emt 0:00:13]} 25. Rd1 {[%emt 0:00:16]} Rc2 {[%emt 0:00:06]} 26. Ba3 {[%emt 0:00:18]} Qf3 {[%emt 0:00:02]} 27. Rf1 {[%emt 0:00:26]} Be3 {[%emt 0:00:02]} 28. Qe8+ {[%emt 0:00:13]} Kh7 {[%emt 0:00:01]} 29. fxe3 {[%emt 0:00:02]} Qg2# {[%emt 0:00:02]} 0-1

[Event "EWCCC Online Preliminary-D 2020"]
[Site "Online"]
[Date "2020.12.19"]
[Round "4.3"]
[White "Gunina, Valentina"]
[Black "Unuk, Laura"]
[Result "0-1"]
[ECO "E05"]
[WhiteElo "2451"]
[BlackElo "2346"]
[Annotator "RC"]
[PlyCount "90"]
[EventDate "2020.12.19"]
[EventType "team-tourn"]
[EventCountry "NET"]
[SourceTitle "playchess.com"]
[Source "ChessBase"]
[SourceQuality "1"]
[TimeControl "900+5"]

1. d4 {[%emt 0:00:02]} Nf6 {[%emt 0:00:03]} 2. c4 {[%emt 0:00:02]} e6 {[%emt 0:00:03]} 3. Nf3 {[%emt 0:00:02]} d5 {[%emt 0:01:11]} 4. g3 {[%emt 0:00:02]} Be7 {[%emt 0:00:09]} 5. Bg2 {[%emt 0:00:02]} O-O {[%emt 0:00:01]} 6. O-O {[%emt 0:00:01]} dxc4 {[%emt 0:00:01]} 7. Qc2 {[%emt 0:00:23]} b6 {[%emt 0:00:10]} 8. Qxc4 {[%emt 0:01:06]} Bb7 {[%emt 0:00:06]} 9. Nc3 {[%emt 0:00:10]} Nbd7 {[%emt 0:00:25]} 10. Bf4 {[%emt 0:00:12]} c5 {[%emt 0:00:05]} 11. dxc5 {[%emt 0:00:08]} Rc8 {[%emt 0:00:48]} 12. Rad1 {[%emt 0:00:13]} Rxc5 {[%emt 0:00:57]} 13. Qa4 {[%emt 0:00:03]} Qc8 {[%emt 0:01:09]} 14. Be3 {[%emt 0:02:03]} Ra5 {[%emt 0:00:09]} 15. Qc2 {[%emt 0:00:09]} Rxa2 {[%emt 0:00:39]} 16. Qb1 {[%emt 0:00:17]} Ra5 {[%emt 0:00:11]} 17. b4 {[%emt 0:01:08]} Rh5 {[%emt 0:02:56]} 18. Rc1 {[%emt 0:00:10]} Qa8 {[%emt 0:00:02]} 19. Bf4 {[%emt 0:00:32]} e5 {[%emt 0:01:06]} 20. Be3 {[%emt 0:00:22]} Ng4 {[%emt 0:00:11]} 21. h3 {[%emt 0:00:30]} Nxe3 {[%emt 0:00:04]} 22. fxe3 {[%emt 0:00:01]} a5 {[%emt 0:02:57]} 23. g4 {[%emt 0:00:57]} Rh6 {[%emt 0:00:04]} 24. bxa5 {[%emt 0:00:01]} Bc5 {[%emt 0:00:02]} 25. Kf2 {[%emt 0:00:30]} Qxa5 {[%emt 0:01:11]} 26. Ne4 {[%emt 0:00:25]} Bxe4 {[%emt 0:01:09]} 27. Qxe4 {[%emt 0:00:02]} Re6 {[%emt 0:00:02]} 28. Ng5 {[%emt 0:00:14]} Nf6 {[%emt 0:00:01]} 29. Qc4 {[%emt 0:01:11]} Rd6 {[%emt 0:00:03]} 30. Be4 {[%emt 0:01:13]} Bxe3+ {[%emt 0:01:10]} 31. Kxe3 {[%emt 0:00:19]} Qd2+ {[%emt 0:00:02]} 32. Kf2 {[%emt 0:00:13]} Qxg5 {[%emt 0:00:01]} 33. Bb1 {[%emt 0:00:14]} Rd4 {[%emt 0:00:02]} 34. Qb3 {[%emt 0:00:08]} Rf4+ {[%emt 0:00:08]} 35. Kg1 {[%emt 0:01:12]} Nxg4 {[%emt 0:00:02]} 36. Qg3 {[%emt 0:00:06]} h5 {[%emt 0:00:18]} 37. Rc3 {[%emt 0:02:10]} Qe7 {[%emt 0:00:20]} 38. Rd1 {[%emt 0:00:22]} Nf6 {[%emt 0:00:04]} 39. Rc6 {[%emt 0:00:26]} h4 {[%emt 0:00:05]} 40. Qg5 {[%emt 0:00:12]} Rd8 {[%emt 0:00:04]} 41. Rdc1 {[%emt 0:00:10]} Rfd4 {[%emt 0:00:06]} 42. Kg2 {[%emt 0:00:35]} Rd2 {[%emt 0:00:04]} 43. Rf1 {[%emt 0:00:09]} Rxe2+ {[%emt 0:00:03]} 44. Kh1 {[%emt 0:00:02]} Qd7 {[%emt 0:00:08]} 45. Bf5 {[%emt 0:00:07]} Qxc6+ {[%emt 0:00:02]} 0-1